bitfinex-derivatives/quotes_ETHF0:USTF0_20250507
["timestamp","ask_amount","ask_price","bid_price","bid_amount"]
[1746660420074,1.09861,1820.2,1820.1,2.77772]
[1746660420274,11.66219209,1820.2,1820.1,2.77772]
[1746660420474,3.66211,1820.2,1820.1,2.77772]
[1746660424384,11.66219209,1820.2,1820.1,2.77772]
[1746660426283,11.66219209,1820.2,1820.1,1.6791]
[1746660426580,11.66219209,1820.2,1820.1,1.09867]
[1746660427081,1.09867,1820.1,1820.0,3.2078]
[1746660427382,1.09867,1820.1,1820.0,4.30653]
[1746660427383,11.57505209,1820.1,1820.0,4.30653]
[1746660427681,11.57505209,1820.1,1820.0,5.96183]
[1746660428285,11.57505209,1820.1,1820.0,4.30653]
[1746660430284,11.57505209,1820.1,1820.0,3.2078]
[1746660431089,15.24905209,1820.1,1820.0,3.2078]
[1746660431590,15.24905209,1820.1,1820.0,4.30653]
[1746660431785,15.24905209,1820.1,1820.0,3.2078]
[1746660433092,1.09879,1819.9,1819.8,9.05674539]
[1746660433297,9.09887209,1819.9,1819.8,7.29774539]
[1746660433690,10.81287209,1819.9,1819.8,7.29774539]
[1746660434099,1.09885,1819.8,1819.7,1.09888]
[1746660434299,12.51433209,1819.8,1819.7,1.09888]
[1746660436598,12.51433209,1819.8,1819.7,2.74828]
[1746660444696,1.09891,1819.7,1819.6,4.30672]
[1746660445001,10.85979209,1819.7,1819.6,4.30672]
[1746660445199,2.85971,1819.7,1819.6,4.30672]
[1746660446191,2.8003,1819.8,1819.7,1.09891]
[1746660446401,10.80038209,1819.8,1819.7,2.83571]
[1746660450102,14.47438209,1819.8,1819.7,2.83571]
[1746660452100,1.09903,1819.5,1819.4,4.30685]
[1746660452301,9.09911209,1819.5,1819.4,4.30685]
[1746660452998,11.64591209,1819.5,1819.4,4.30685]
[1746660453398,11.64591209,1819.5,1819.4,3.2078]
[1746660454106,15.31991209,1819.5,1819.4,3.2078]
[1746660454309,1.09915,1819.3,1819.2,6.05917]
[1746660454605,9.09923209,1819.3,1819.2,1.09917]
[1746660454808,9.09923209,1819.3,1819.2,4.30697]
[1746660455194,9.09923209,1819.3,1819.2,6.06217]
[1746660457106,1.09906,1819.5,1819.4,1.09909]
[1746660457306,1.09906,1819.5,1819.4,3.2078]
[1746660457608,9.09914209,1819.5,1819.4,3.2078]
[1746660457808,10.79164209,1819.5,1819.4,3.2078]
[1746660458011,10.79164209,1819.5,1819.4,4.30689]
[1746660458307,9.69258209,1819.5,1819.2,1.09919]
[1746660458607,9.09923209,1819.3,1819.2,1.09919]
[1746660458808,8.00008209,1819.3,1819.2,4.30699]
[1746660459011,9.09923209,1819.3,1819.2,6.05809]
[1746660459308,8.00008209,1819.3,1819.2,6.05809]
[1746660459811,9.09923209,1819.3,1819.2,6.05809]
[1746660460309,8.00008209,1819.3,1819.2,6.05809]
[1746660460510,9.09923209,1819.3,1819.2,6.05809]
[1746660460911,8.00008209,1819.3,1819.2,6.05809]
[1746660461300,9.09923209,1819.3,1819.2,6.05809]
[1746660462807,8.00008209,1819.3,1819.2,6.05809]
[1746660463115,1.09913,1819.4,1819.3,1.09915]
[1746660463307,1.09913,1819.4,1819.3,3.59325]
[1746660463708,1.94335,1819.7,1819.6,1.09897]
[1746660463912,9.94343209,1819.7,1819.6,4.30677]
[1746660464311,11.68143209,1819.7,1819.6,4.30677]
[1746660466906,3.68135,1819.7,1819.6,6.02347]
[1746660467306,3.68135,1819.7,1819.6,4.30677]
[1746660467508,11.68143209,1819.7,1819.6,4.30677]
[1746660468914,4.30644,1820.2,1819.8,2.74703]
[1746660469104,8.00008209,1820.1,1820.0,4.30653]
[1746660469414,8.00008209,1820.2,1820.1,1.09867]
[1746660469612,3.68848,1820.3,1820.2,1.09861]
[1746660470014,10.58998209,1820.3,1820.1,2.81532]
[1746660470211,3.6885,1820.3,1820.2,1.09861]
[1746660470417,11.68858209,1820.3,1820.2,1.09861]
[1746660470716,1.09861,1820.2,1820.1,1.7167]
[1746660471016,10.77603209,1820.2,1820.1,1.09867]
[1746660471211,1.09867,1820.1,1820.0,4.30652]
[1746660471412,10.77605209,1820.1,1820.0,4.30652]
[1746660471707,10.77605209,1820.1,1820.0,3.2078]
[1746660471916,10.77605209,1820.1,1819.9,2.81257]
[1746660472118,9.67738209,1820.0,1819.9,2.81257]
[1746660472716,1.6773,1820.0,1819.9,2.81257]
[1746660473712,2.77603,1820.0,1819.9,2.81257]
[1746660473917,10.77611209,1820.0,1819.9,2.81257]
[1746660475423,10.77611209,1820.0,1819.8,3.2078]
[1746660475424,1.09879,1819.9,1819.8,4.30662]
[1746660475621,11.58677209,1819.9,1819.8,4.30662]
[1746660475821,10.48798209,1819.9,1819.8,4.30662]
[1746660476120,11.58677209,1819.9,1819.8,4.30662]
[1746660479016,11.58677209,1819.9,1819.8,4.30665]
[1746660480025,10.48798209,1819.9,1819.8,4.30665]
[1746660480224,8.82168209,1819.9,1819.8,4.30665]
[1746660480725,0.8216,1819.9,1819.8,5.99825]
[1746660480924,8.82168209,1819.9,1819.8,5.99825]
[1746660481319,0.8216,1819.9,1819.8,5.99825]
[1746660483727,1.7648,1820.0,1819.9,1.09879]
[1746660483929,1.9009,1820.1,1820.0,1.09873]
[1746660484227,9.09881209,1820.0,1819.9,2.76426]
[1746660484428,10.74271209,1820.0,1819.9,2.76426]
[1746660487932,2.74263,1820.0,1819.9,2.76426]
[1746660488229,1.9009,1820.1,1820.0,1.09873]
[1746660488526,9.90098209,1820.1,1820.0,2.82513]
[1746660488924,2.87504,1820.2,1820.1,1.09867]
[1746660489124,2.87504,1820.2,1820.1,2.82507]
[1746660489429,2.87501,1820.2,1820.1,2.82507]
[1746660489731,10.87509209,1820.2,1820.1,2.82507]
[1746660491628,10.87509209,1820.2,1820.1,1.09867]
[1746660491833,1.09867,1820.1,1820.0,4.30648]
[1746660492034,10.74255209,1820.1,1820.0,4.30648]
[1746660493030,10.74255209,1820.1,1820.0,3.2078]
[1746660493229,1.09873,1820.0,1819.9,2.80215]
[1746660493534,4.45723,1820.0,1819.9,2.80215]
[1746660495321,12.45731209,1820.0,1819.9,2.80215]
[1746660495526,1.09879,1819.9,1819.8,4.30661]
[1746660495832,10.85557209,1819.9,1819.8,4.30661]
[1746660496034,10.85557209,1819.9,1819.8,3.2078]
[1746660496235,10.85557209,1819.9,1819.8,4.30665]
[1746660496835,10.85557209,1819.9,1819.8,3.2078]
[1746660499136,1.09885,1819.8,1819.7,1.09886]
[1746660499434,10.71483209,1819.8,1819.7,4.30666]
[1746660500936,10.71483209,1819.8,1819.7,3.2078]
[1746660501235,14.38883209,1819.8,1819.7,3.2078]
[1746660503132,1.09897,1819.6,1819.5,3.2078]
[1746660503336,1.09897,1819.6,1819.5,4.30683]
[1746660503638,10.83315209,1819.6,1819.5,4.30683]
[1746660504137,14.50715209,1819.6,1819.5,4.30683]
[1746660504837,14.50715209,1819.6,1819.5,3.2078]
[1746660507234,1.09929,1819.2,1819.1,1.09922]
[1746660507442,1.09927,1819.1,1819.0,2.87378]
[1746660507740,3.57277,1819.1,1819.0,2.87378]
[1746660513445,1.90287,1819.1,1819.0,2.87378]
[1746660514244,0.8036,1819.1,1819.0,6.54778]
[1746660514446,1.90287,1819.1,1819.0,6.54778]
[1746660515248,1.90287,1819.1,1819.0,2.87378]
[1746660516046,0.8036,1819.1,1819.0,2.87378]
[1746660516449,1.90287,1819.1,1819.0,2.87378]
[1746660519242,1.90287,1819.1,1819.0,6.54778]
[1746660520750,9.90295209,1819.1,1819.0,6.54778]
[1746660523154,9.90295209,1819.1,1819.0,2.87378]
[1746660524150,9.90295209,1819.1,1819.0,6.54778]
[1746660524450,2.81385,1819.2,1819.1,1.09927]
[1746660524639,3.69145,1819.2,1819.1,2.86147]
[1746660524844,11.69153209,1819.2,1819.1,2.86147]
[1746660525050,1.09927,1819.1,1819.0,4.77329]
[1746660525351,9.09935209,1819.1,1819.0,4.77329]
[1746660525555,2.74287,1819.1,1819.0,6.53549]
[1746660526151,2.74287,1819.1,1819.0,2.86149]
[1746660527155,2.74287,1819.1,1819.0,6.53549]
[1746660527654,3.55027,1819.1,1819.0,6.53549]
[1746660528249,3.55027,1819.1,1819.0,2.86149]
[1746660528754,11.55035209,1819.1,1819.0,2.86149]
[1746660531156,11.55035209,1819.1,1819.0,6.53549]
[1746660532657,2.451,1819.1,1819.0,6.53549]
[1746660532857,10.45108209,1819.1,1819.0,6.53549]
[1746660533759,11.55035209,1819.1,1819.0,6.53549]
[1746660537169,10.45108209,1819.1,1819.0,6.53549]
[1746660537363,8.00008209,1819.1,1819.0,6.53549]
[1746660537565,0.8776,1819.2,1819.1,1.09927]
[1746660537866,1.09906,1819.5,1819.1,4.43139]
[1746660538069,9.09914209,1819.5,1819.4,1.09905]
[1746660538365,12.55924209,1819.5,1819.4,1.09905]
[1746660538562,11.46018209,1819.5,1819.4,1.09905]
[1746660538964,12.55921209,1819.5,1819.4,1.6832]
[1746660539163,12.55923209,1819.5,1819.4,1.09909]
[1746660540063,1.09915,1819.3,1819.2,1.09916]
[1746660540263,8.00008209,1819.3,1819.2,1.09916]
[1746660540467,1.6918,1819.4,1819.3,1.09915]
[1746660540665,10.79097209,1819.4,1819.3,1.09915]
[1746660540867,10.79097209,1819.4,1819.3,2.84325]
[1746660542064,1.09926,1819.2,1819.1,1.09926]
[1746660542272,8.00008209,1819.2,1819.1,1.09926]
[1746660542470,12.51099209,1819.2,1819.1,1.09926]
[1746660542671,11.41178209,1819.2,1819.1,2.84336]
[1746660543376,0.8889,1819.2,1819.1,3.67126]
[1746660544770,8.88898209,1819.2,1819.0,14.17954539]
[1746660545076,10.73805209,1819.1,1819.0,11.60482539]
[1746660545273,11.54045209,1819.1,1819.0,13.35522539]
[1746660545473,2.4411,1819.1,1819.0,13.35522539]
[1746660545774,2.4411,1819.1,1819.0,6.05748]
[1746660546274,2.4411,1819.1,1819.0,9.73148]
[1746660546779,10.44118209,1819.1,1819.0,9.73148]
[1746660547676,10.44118209,1819.1,1819.0,6.52368]
[1746660548168,8.00008209,1819.1,1819.0,7.39488]
[1746660549670,2.4561,1819.3,1819.2,1.09921]
[1746660549871,10.45618209,1819.3,1819.2,1.09921]
[1746660550274,9.61638209,1819.3,1819.2,3.60971]
[1746660550774,8.00008209,1819.3,1819.2,3.60971]
[1746660551168,8.00008209,1819.3,1819.2,7.28371]
[1746660551575,9.09923209,1819.3,1819.2,4.77321]
[1746660551870,10.71223209,1819.3,1819.2,3.674]
[1746660552073,17.59403209,1819.3,1819.2,3.674]
[1746660552275,1.09921,1819.2,1819.1,7.29774539]
[1746660552475,11.69279209,1819.2,1819.1,7.29774539]
[1746660554582,11.69279209,1819.2,1819.1,8.39701539]
[1746660555578,11.69279209,1819.2,1819.1,1.09927]
[1746660558989,1.09927,1819.1,1819.0,2.72399]
[1746660559181,11.59945209,1819.1,1819.0,1.09929]
[1746660562284,1.0994,1819.0,1818.9,1.09939]
[1746660562480,10.51818209,1819.0,1818.9,1.09939]
[1746660562679,10.51818209,1819.0,1818.9,2.81339]
[1746660563076,11.61752209,1819.0,1818.9,2.81339]
[1746660564684,10.51818209,1819.0,1818.9,1.09939]
[1746660564890,1.0994,1818.9,1818.8,8.39714539]
[1746660565186,10.80138209,1818.9,1818.8,8.39714539]
[1746660567185,9.70198209,1818.9,1818.8,8.39714539]
[1746660567387,9.70198209,1818.9,1818.8,10.12564539]
[1746660568289,9.70198209,1818.9,1818.8,2.8279]
[1746660568790,10.80138209,1818.9,1818.8,2.8279]
[1746660568983,10.80138209,1818.9,1818.8,1.0994]
[1746660569187,1.09946,1818.8,1818.7,12.66320539]
[1746660569387,12.51954209,1818.8,1818.7,12.66320539]
[1746660571184,11.42008209,1818.8,1818.7,12.66320539]
[1746660571382,12.51954209,1818.8,1818.7,7.08206]
[1746660574391,12.51954209,1818.8,1818.7,2.81606]
[1746660575384,12.51960209,1818.8,1818.7,1.09952]
[1746660579697,11.42008209,1818.8,1818.7,1.09952]
[1746660579896,11.42008209,1818.8,1818.7,2.77052]
[1746660580896,12.51954209,1818.8,1818.7,2.77052]
[1746660590896,11.42008209,1818.8,1818.7,2.77052]
[1746660591310,8.86388209,1818.8,1818.7,2.77052]
[1746660591511,2.483,1819.0,1818.9,1.0994]
[1746660591721,3.2963,1819.0,1818.9,1.0994]
[1746660591903,11.29638209,1819.0,1818.9,2.8685]
[1746660592104,12.39572209,1819.0,1818.9,2.8685]
[1746660592906,11.29638209,1819.0,1818.9,2.8685]
[1746660593110,11.29638209,1819.0,1818.9,6.5425]
[1746660593408,0.8133,1819.0,1818.9,6.5425]
[1746660595210,0.8133,1819.0,1818.9,2.8685]
[1746660595411,2.4652,1819.0,1818.9,2.8685]
[1746660599018,2.4652,1819.0,1818.9,1.0994]
[1746660599019,11.56462209,1819.0,1818.9,1.0994]
[1746660600119,1.0994,1818.9,1818.8,11.60496539]
[1746660600313,11.72448209,1818.9,1818.8,8.39716539]
[1746660600920,10.62508209,1818.9,1818.8,8.39716539]
[1746660601523,11.72448209,1818.9,1818.8,8.39716539]
[1746660601823,10.62508209,1818.9,1818.8,1.09942]
[1746660602122,11.72448209,1818.9,1818.8,1.09942]
[1746660603522,10.62508209,1818.9,1818.8,1.09942]
[1746660604323,10.62508209,1818.9,1818.8,2.72142]
[1746660604517,0.8133,1819.0,1818.9,1.0994]
[1746660604717,0.8133,1819.0,1818.9,1.9473]
[1746660605119,0.8133,1819.0,1818.9,3.5693]
[1746660606624,5.7209,1819.1,1819.0,1.09934]
[1746660606824,6.528,1819.1,1819.0,2.72134]
[1746660607024,14.52808209,1819.1,1819.0,2.72134]
[1746660607525,11.32028209,1819.1,1819.0,2.72134]
[1746660608925,12.41955209,1819.1,1819.0,2.72134]
[1746660609220,11.32028209,1819.1,1819.0,2.72134]
[1746660609427,0.8071,1819.1,1819.0,2.72134]
[1746660611118,0.8071,1819.1,1819.0,6.39534]
[1746660612723,1.0992,1819.3,1819.2,1.09921]
[1746660613125,9.09928209,1819.3,1819.2,2.85891]
[1746660613422,10.73418209,1819.3,1819.2,2.85891]
[1746660618033,10.73418209,1819.3,1819.2,1.09921]
[1746660623128,10.73418209,1819.3,1819.2,2.85641]
[1746660629628,2.7341,1819.3,1819.2,2.85641]
[1746660631035,10.73418209,1819.3,1819.2,2.85641]
[1746660631240,10.73418209,1819.3,1819.2,1.09921]
[1746660633539,1.6472,1819.4,1819.3,1.09915]
[1746660633742,1.6472,1819.4,1819.3,1.92205]
[1746660633932,9.64728209,1819.4,1819.3,3.66115]
[1746660634135,9.64728209,1819.4,1819.3,7.33515]
[1746660636044,1.6472,1819.4,1819.3,7.33515]
[1746660637144,0.8111,1819.4,1819.3,7.33515]
[1746660643151,0.8111,1819.4,1819.3,3.66115]
[1746660644145,0.8111,1819.4,1819.3,7.33515]
[1746660646948,1.91019,1819.4,1819.3,6.51225]
[1746660647148,12.41447209,1819.4,1819.3,1.09915]
[1746660664863,4.254,1819.6,1819.1,11.42301]
[1746660665055,4.254,1819.6,1819.5,1.09903]
[1746660665461,12.25408209,1819.6,1819.5,1.09903]
[1746660665661,12.25408209,1819.6,1819.5,2.82363]
[1746660665854,13.87418209,1819.6,1819.5,2.82363]
[1746660666652,1.7604,1819.7,1819.6,1.09897]
[1746660666863,1.7604,1819.7,1819.6,2.82357]
[1746660667862,2.85931,1819.7,1819.6,2.82357]
[1746660669666,1.7604,1819.7,1819.6,2.82357]
[1746660670168,2.719,1819.8,1819.7,1.09891]
[1746660670360,1.6201,1819.8,1819.7,3.58441]
[1746660670560,10.71903209,1819.8,1819.7,3.58441]
[1746660670961,9.62018209,1819.8,1819.7,3.58441]
[1746660671171,10.71903209,1819.8,1819.7,3.58441]
[1746660672378,1.09895,1819.7,1819.6,1.09894]
[1746660672574,1.099,1819.6,1819.5,2.7389]
[1746660672774,2.8394,1819.6,1819.5,2.7389]
[1746660672973,4.587,1819.6,1819.5,2.7389]
[1746660673168,12.58708209,1819.6,1819.5,1.6399]
[1746660673374,12.58708209,1819.6,1819.5,1.09903]
[1746660679478,4.587,1819.6,1819.5,1.09903]
[1746660679684,12.58708209,1819.6,1819.5,1.09903]
[1746660679886,11.48808209,1819.6,1819.5,1.09903]
[1746660680087,8.88288209,1819.6,1819.5,1.09903]
[1746660680282,0.8828,1819.6,1819.5,1.09903]
[1746660680487,4.6453,1819.8,1819.7,1.09891]
[1746660680984,12.64538209,1819.8,1819.7,1.09891]
[1746660685687,12.64538209,1819.8,1819.7,2.83901]
[1746660709796,4.30645,1820.2,1819.9,3.84576]
[1746660709996,3.2078,1820.2,1820.1,1.09867]
[1746660710502,11.20788209,1820.2,1820.1,1.09867]
[1746660711901,1.6166,1820.3,1820.2,1.09861]
[1746660712095,1.6166,1820.3,1820.2,2.75661]
[1746660712096,10.71523209,1820.3,1820.2,2.75661]
[1746660712300,10.71523209,1820.3,1820.2,1.09861]
[1746660715003,1.6166,1820.3,1820.2,1.09861]
[1746660715205,2.76664,1820.4,1820.3,1.09855]
[1746660715504,11.29058209,1820.4,1820.3,1.09855]
[1746660715800,3.2905,1820.4,1820.3,1.09855]
[1746660716105,4.30616,1820.7,1820.6,1.09837]
[1746660716499,12.30624209,1820.7,1820.6,1.09837]
[1746660717093,15.98024209,1820.7,1820.6,1.09837]
[1746660717603,18.46914209,1820.7,1820.6,1.09837]
[1746660722898,14.16298209,1820.7,1820.6,1.09837]
[1746660723100,12.47708209,1820.7,1820.6,1.09837]
[1746660723406,0.817,1820.8,1820.7,1.09831]
[1746660723605,0.817,1820.8,1820.7,2.72631]
[1746660723909,3.61035,1820.8,1820.7,2.72631]
[1746660724208,2.5121,1820.8,1820.7,2.72631]
[1746660724506,3.61035,1820.8,1820.7,2.72631]
[1746660724905,2.5121,1820.8,1820.7,2.72631]
[1746660725299,4.0797,1820.9,1820.8,1.09825]
[1746660725605,13.17797209,1820.9,1820.8,2.72625]
[1746660726101,14.89757209,1820.9,1820.8,2.72625]
[1746660727898,16.54496209,1820.9,1820.5,5.95387]
[1746660728202,9.09845209,1820.7,1820.6,1.09831]
[1746660728396,1.09849,1820.5,1820.4,1.09844]
[1746660728601,9.09857209,1820.5,1820.4,1.09844]
[1746660728795,11.70127209,1820.5,1820.4,1.09844]
[1746660730407,2.6027,1820.5,1820.4,1.09844]
[1746660730607,3.70113,1820.5,1820.4,2.83484]
[1746660734610,2.6027,1820.5,1820.4,2.83484]
[1746660734814,3.70113,1820.5,1820.4,2.83484]
[1746660735609,2.6027,1820.5,1820.4,2.83484]
[1746660735809,10.60278209,1820.5,1820.4,2.83484]
[1746660737203,10.60278209,1820.5,1820.4,3.55141252]
[1746660737503,11.70121209,1820.5,1820.4,3.55141252]
[1746660738711,11.70121209,1820.5,1820.4,3.55189152]
[1746660739912,11.70121209,1820.5,1820.4,3.55241947]
[1746660740104,11.70121209,1820.5,1820.4,2.83484]
[1746660740509,11.70121209,1820.5,1820.4,3.55267387]
[1746660740813,10.60278209,1820.5,1820.4,3.55267387]
[1746660741312,10.60278209,1820.5,1820.4,3.55297463]
[1746660741513,11.70121209,1820.5,1820.4,1.81657463]
[1746660743115,11.70121209,1820.5,1820.4,1.81650411]
[1746660744207,11.70121209,1820.5,1820.4,1.81678087]
[1746660744915,11.70121209,1820.5,1820.4,1.81674136]
[1746660745515,10.60278209,1820.5,1820.4,1.81674136]
[1746660745707,10.60278209,1820.5,1820.4,3.43354136]
[1746660746111,0.8831,1820.5,1820.4,3.43354136]
[1746660746310,2.5334,1820.5,1820.4,3.43354136]
[1746660746813,3.63183,1820.5,1820.4,3.43354136]
[1746660748514,11.63191209,1820.5,1820.4,3.43354136]
[1746660748715,11.63191209,1820.5,1820.4,1.81674136]
[1746660751021,11.63191209,1820.5,1820.4,0.71830136]
[1746660751616,11.63191209,1820.5,1820.3,3.2078]
[1746660751617,1.09849,1820.4,1820.3,3.2078]
[1746660751818,10.86547209,1820.4,1820.3,3.92635025]
[1746660752020,10.86547209,1820.4,1820.3,5.02490025]
[1746660752321,14.53947209,1820.4,1820.3,5.02490025]
[1746660752520,14.53947209,1820.4,1820.3,4.30635]
[1746660752914,14.53947209,1820.4,1820.3,5.93595]
[1746660753114,10.86547209,1820.4,1820.3,5.93595]
[1746660754523,10.86547209,1820.4,1820.3,2.72815]
[1746660755325,10.86547209,1820.4,1820.3,3.44839087]
[1746660757222,14.53947209,1820.4,1820.3,3.44839087]
[1746660758122,14.53947209,1820.4,1820.3,0.72024087]
[1746660761622,1.09855,1820.3,1820.2,1.09856]
[1746660761926,11.54083209,1820.3,1820.2,1.81951137]
[1746660762221,11.54083209,1820.3,1820.2,0.72095137]
[1746660762421,1.09867,1820.1,1820.0,7.29774539]
[1746660762722,53.10655209,1820.1,1820.0,7.29774539]
[1746660763025,58.10655209,1820.1,1820.0,6.91399744]
[1746660763220,63.38975209,1820.1,1820.0,5.79789744]
[1746660763413,63.38975209,1820.1,1820.0,3.07209744]
[1746660763823,63.49076603,1820.1,1820.0,3.07209744]
[1746660764918,63.92769951,1820.1,1820.0,3.07209744]
[1746660765119,63.82668557,1820.1,1820.0,3.07209744]
[1746660765315,63.92769951,1820.1,1820.0,3.07209744]
[1746660765527,63.92769958,1820.1,1820.0,3.07209744]
[1746660766722,63.92769958,1820.1,1819.5,1.09902]
[1746660766723,1.09903,1819.5,1819.4,1.765]
[1746660767025,9.09911209,1819.5,1819.4,2.86409]
[1746660767226,1.09903,1819.5,1819.4,2.86409]
[1746660768022,2.79173,1819.5,1819.4,1.09909]
[1746660768217,1.09909,1819.4,1819.3,5.1479]
[1746660768422,2.79179,1819.4,1819.3,5.1479]
[1746660770128,2.79179,1819.4,1819.3,1.9401]
[1746660776130,14.46587209,1819.4,1819.3,0.841]
[1746660776332,14.46587209,1819.4,1819.3,1.94015]
[1746660777132,10.79187209,1819.4,1819.3,1.94015]
[1746660780138,10.79187209,1819.4,1819.3,3.61885]
[1746660780437,9.69278209,1819.4,1819.3,3.61885]
[1746660781338,10.79187209,1819.4,1819.3,3.61885]
[1746660782936,9.09917209,1819.4,1819.3,3.61885]
[1746660783131,8.00008209,1819.4,1819.3,3.61885]
[1746660783733,5.7307,1819.6,1819.5,1.09903]
[1746660783935,11.20788209,1819.6,1819.5,1.09903]
[1746660784134,8.00008209,1819.6,1819.5,2.72453]
[1746660784637,9.09905209,1819.6,1819.5,2.72453]
[1746660785040,12.96938209,1819.6,1819.3,0.841]
[1746660785339,9.09917209,1819.4,1819.3,1.94014]
[1746660785537,9.09917209,1819.4,1819.1,4.30703]
[1746660785538,1.09921,1819.2,1819.1,4.30703]
[1746660785840,9.09929209,1819.2,1819.1,4.30703]
[1746660786229,9.97959209,1819.2,1819.1,4.30703]
[1746660786432,9.97959209,1819.2,1819.1,5.93253]
[1746660787334,9.97959209,1819.2,1819.1,2.72473]
[1746660788343,9.97959209,1819.2,1819.1,2.72477]
[1746660789144,13.65359209,1819.2,1819.1,2.72477]
[1746660790042,13.65359209,1819.2,1819.1,1.09927]
[1746660794149,1.09927,1819.1,1819.0,3.66497]
[1746660794447,9.09935209,1819.1,1819.0,3.66497]
[1746660794647,10.80965209,1819.1,1819.0,3.66497]
[1746660794857,1.0994,1818.9,1818.8,2.02883]
[1746660795144,1.09976,1818.3,1818.2,2.4436]
[1746660795446,1.09976,1818.3,1818.2,3.54342]
[1746660795848,6.545,1818.5,1818.4,1.0997]
[1746660796144,1.0997,1818.4,1818.3,2.8341]
[1746660797743,3.2078,1818.5,1818.4,1.0997]
[1746660797947,3.2078,1818.5,1818.4,3.7046]
[1746660798138,4.30744,1818.5,1818.4,3.7046]
[1746660798747,3.2078,1818.5,1818.4,3.7046]
[1746660799047,4.30744,1818.5,1818.4,3.7046]
[1746660799247,4.30744,1818.5,1818.4,2.6049]
[1746660799547,5.99594,1818.5,1818.4,2.8341]
[1746660802151,4.8963,1818.5,1818.4,2.8341]
[1746660802550,1.09976,1818.3,1818.2,1.90908]
[1746660802750,9.09984209,1818.3,1818.2,1.90908]
[1746660802953,1.09976,1818.3,1818.2,1.90908]
[1746660803248,5.58366,1818.3,1818.2,1.90908]
[1746660803550,13.58374209,1818.3,1818.2,1.90908]
[1746660807352,13.58374209,1818.3,1818.2,3.68128]
[1746660807552,1.09982,1818.2,1818.1,1.09983]
[1746660807753,10.71830209,1818.2,1818.1,1.09983]
[1746660807954,11.53700209,1818.2,1818.1,1.09983]
[1746660808155,15.21100209,1818.2,1818.1,2.87203]
[1746660810356,1.09988,1818.1,1818.0,1.9044]
[1746660810557,10.86016209,1818.1,1818.0,1.9044]
[1746660810759,2.86008,1818.1,1818.0,1.9044]
[1746660811156,6.53408,1818.1,1818.0,1.9044]
[1746660811357,14.53416209,1818.1,1818.0,1.9044]
[1746660811658,1.10003,1817.9,1817.8,1.09999]
[1746660811957,9.10011209,1817.9,1817.8,2.72329]
[1746660812153,1.10003,1817.9,1817.8,2.72329]
[1746660812360,6.48673,1817.9,1817.8,2.72329]
[1746660812559,5.3867,1817.9,1817.8,2.72329]
[1746660812860,6.4867,1817.9,1817.8,2.72329]
[1746660813160,5.3867,1817.9,1817.8,2.72329]
[1746660814160,1.7127,1817.9,1817.8,2.72329]
[1746660817254,2.8127,1817.9,1817.8,2.72329]
[1746660817754,10.81278209,1817.9,1817.8,2.72329]
[1746660818459,11.69048209,1817.9,1817.8,1.09999]
[1746660818859,1.10006,1817.8,1817.7,1.10012]
[1746660819160,10.85464209,1817.8,1817.7,1.10012]
[1746660820055,9.75458209,1817.8,1817.7,1.10012]
[1746660820260,1.7545,1817.8,1817.7,1.10012]
[1746660820460,2.85456,1817.8,1817.7,1.10012]
[1746660820656,1.7545,1817.8,1817.7,2.74472]
[1746660820853,2.85456,1817.8,1817.7,2.74472]
[1746660821053,1.7545,1817.8,1817.7,2.74472]
[1746660823155,1.7545,1817.8,1817.3,2.75085]
[1746660823156,15.71267209,1817.8,1817.3,2.75085]
[1746660823362,1.10018,1817.6,1817.5,1.10019]
[1746660823857,9.10026209,1817.6,1817.5,2.80169]
[1746660824156,8.00008209,1817.6,1817.5,2.80169]
[1746660824461,1.10008,1817.8,1817.7,1.10012]
[1746660824661,3.60418,1817.8,1817.7,1.10012]
[1746660824961,11.60426209,1817.8,1817.7,1.10012]
[1746660825163,1.10012,1817.7,1817.6,2.80163]
[1746660825462,8.00008209,1817.7,1817.6,2.80163]
[1746660825654,2.5041,1817.8,1817.6,2.80163]
[1746660825857,8.00008209,1817.7,1817.6,2.80163]
[1746660826056,1.1004,1817.3,1817.0,3.2078]
[1746660826257,9.10055209,1817.2,1817.1,1.10044]
[1746660826456,9.10055209,1817.2,1817.1,2.80194]
[1746660826661,1.10047,1817.2,1817.1,2.80194]
[1746660826963,4.9304,1817.4,1817.3,1.10036]
[1746660827152,14.03078209,1817.4,1817.3,1.10036]
[1746660827359,15.70388209,1817.4,1817.3,1.10036]
[1746660827656,1.10036,1817.3,1817.2,2.77588]
[1746660827859,10.77354209,1817.3,1817.2,1.6755]
[1746660829064,10.77354209,1817.3,1817.2,2.77592]
[1746660829274,9.67318209,1817.3,1817.0,4.9051]
[1746660829461,10.77365209,1817.2,1817.1,1.10048]
[1746660829763,1.10048,1817.1,1817.0,7.6811]
[1746660829963,3.64678,1817.1,1817.0,7.6811]
[1746660830163,11.64686209,1817.1,1817.0,4.3083]
[1746660830862,11.64686209,1817.1,1817.0,6.0082]
[1746660831861,11.64686209,1817.1,1817.0,3.2078]
[1746660832067,22.99318209,1817.1,1816.4,2.75228]
[1746660832269,9.10081209,1816.7,1816.6,1.10074]
[1746660832465,8.00008209,1816.7,1816.6,1.10074]
[1746660832766,1.10073,1816.7,1816.6,1.10074]
[1746660833066,1.10073,1816.7,1816.6,2.79244]
[1746660833257,5.11499,1816.8,1816.7,1.10073]
[1746660833460,5.11499,1816.8,1816.7,1.6917]
[1746660833660,13.11507209,1816.8,1816.7,1.6917]
[1746660834166,13.11507209,1816.8,1816.7,5.3657]
[1746660834359,11.20788209,1816.8,1816.7,6.46643]
[1746660835066,3.2078,1816.8,1816.7,6.46643]
[1746660835567,8.00008209,1816.8,1816.7,6.46643]
[1746660835764,9.10075209,1816.8,1816.7,6.46643]
[1746660835959,10.79285209,1816.8,1816.7,6.46643]
[1746660837068,14.00065209,1816.8,1816.7,3.674]
[1746660837270,1.10079,1816.6,1816.5,0.8107]
[1746660837468,9.10087209,1816.6,1816.5,0.8107]
[1746660837768,1.10085,1816.5,1816.4,2.80827]
[1746660837965,10.79303209,1816.5,1816.4,1.10087]